Cogmind - Beta 14 @@@ ROGUE MODE // 2025.03.17 @ 20:58:51 Player: Cog on my mind Result: Escaped! Performance ------------- Evolutions (9) 4500 Regions Visited (14) 2800 Robots Destroyed (84) 420 Value Destroyed (2388) 2388 Prototype IDs (28) 560 Alien Tech Used (3) 600 Bonus (8781) 8781 TOTAL SCORE: 20049 Bonus ------- High Alert Combat Kills 329 Win 3000 Win Speed 5452 Cogmind --------- Core Integrity 1554/1600 Matter 285/300 Energy 154/430 System Corruption 4% Temperature Cool (21) Movement Flying (21) Location To Epsilon Eridani Parts ------- > --- POWER (2) -------- Light Particle Reactor Improved Quantum Reactor > --- PROPULSION (10) -- Improved VTOL Module Xenon Bombardment Thruster Xenon Bombardment Thruster Nuclear Pulse Thruster Field Propulsion Array Field Propulsion Array Field Propulsion Array > --- UTILITY (11) ----- Advanced Cooling System Structural Scanner Advanced Visual Processing Unit Improved Sensor Array Advanced Signal Interpreter Advanced Melee Analysis Suite Improved Medium Armor Plating Experimental Hardlight Generator Improved System Shield > --- WEAPON (2) ------- (None) > --- INVENTORY (5) ---- Light Antimatter Reactor Sigix Broadsword Peak State ------------ > --- POWER ------------ Light Particle Reactor Improved Quantum Reactor > --- PROPULSION ------- Improved VTOL Module Xenon Bombardment Thruster Xenon Bombardment Thruster Nuclear Pulse Thruster Field Propulsion Array Field Propulsion Array Field Propulsion Array > --- UTILITY ---------- Advanced Cooling System Advanced Visual Processing Unit Improved Sensor Array Advanced Signal Interpreter Advanced Melee Analysis Suite Advanced Melee Analysis Suite Improved Propulsion Shielding Improved Medium Armor Plating Experimental Hardlight Generator Hacking Suite Improved System Shield > --- WEAPON ----------- Sigix Broadsword > --- INVENTORY -------- Light Antimatter Reactor Structural Scanner Terrabomb Sigix Terminator [Rating: 162] Favorites ----------- Power F-cell Engine Engine F-cell Engine Reactor Light Particle Reactor Propulsion Improved VTOL Module Treads Light Treads Leg Carbon-fiber Leg Wheel Wheel Flight Unit Improved VTOL Module Utility Hacking Suite Device Advanced Cooling System Storage Medium Storage Unit Processor Advanced Visual Processing Unit Hackware Hacking Suite Protection Improved Medium Armor Plating Weapon Greatsword Energy Gun Beam Rifle Energy Cannon Beam Cannon Ballistic Gun Heavy Assault Rifle Launcher Grenade Launcher Impact Weapon Hammer Slashing Weapon Greatsword Build | -11 -10 -9 -8 -7 -6 -5 -4 -4 -4 -3 -3 -2 -2 -1 ------- Run | Yrd Mat Mat Mat Fac Fac Fac Fac Upp Upp Res Tes Res Qua Acc Slots Evolved 18 | . . 2 2 2 2 2 2 . . 2 . 2 . 2 Power 1 | . . . . . . 1 . . . . . . . . Propulsion 8 | . . 1 1 2 . 1 1 . . 1 . 1 . . Utility 9 | . . 1 1 . 2 . 1 . . 1 . 1 . 2 Weapon . | . . . . . . . . . . . . . . . Parts Attached 98 | 7 10 2 26 3 5 3 12 . . 2 9 1 9 9 Power 18 | 1 2 1 4 1 2 1 1 . . . 1 . 2 2 Engine 13 | 1 2 1 4 1 2 1 . . . . . . 1 . Core . | . . . . . . . . . . . . . . . Reactor 5 | . . . . . . . 1 . . . 1 . 1 2 Propulsion 25 | 2 3 . 10 2 1 2 2 . . . . 1 . 2 Treads 3 | 2 1 . . . . . . . . . . . . . Leg 2 | . . . 2 . . . . . . . . . . . Wheel 5 | . 2 . 3 . . . . . . . . . . . Hover . | . . . . . . . . . . . . . . . Flight 15 | . . . 5 2 1 2 2 . . . . 1 . 2 Utility 37 | 2 . 1 5 . 2 . 9 . . 2 6 . 6 4 Device 18 | 1 . 1 . . 1 . 5 . . 1 6 . . 3 Storage 3 | 1 . . 2 . . . . . . . . . . . Processor 5 | . . . 2 . . . . . . 1 . . 2 . Hackware 5 | . . . 1 . . . 1 . . . . . 2 1 Protection 6 | . . . . . 1 . 3 . . . . . 2 . Artifact . | . . . . . . . . . . . . . . . Weapon 18 | 2 5 . 7 . . . . . . . 2 . 1 1 Energy Gun 8 | 2 2 . 3 . . . . . . . 1 . . . Energy Cannon 2 | . 2 . . . . . . . . . . . . . Ballistic Gun 1 | . . . 1 . . . . . . . . . . . Ballistic Cannon . | . . . . . . . . . . . . . . . Launcher 2 | . . . 1 . . . . . . . . . . 1 Special Weapon . | . . . . . . . . . . . . . . . Impact Weapon 1 | . 1 . . . . . . . . . . . . . Slashing Weapon 4 | . . . 2 . . . . . . . 1 . 1 . Piercing Weapon . | . . . . . . . . . . . . . . . Special Melee Weapon . | . . . . . . . . . . . . . . . Unidentified Prototypes 13 | . . . 2 . 1 . 1 . . . 5 . 2 2 Parts Lost 23 | . 8 2 6 . . 1 1 . . . 3 . . 2 Power 4 | . 1 1 1 . . . . . . . . . . 1 Propulsion 11 | . 3 1 4 . . 1 . . . . 2 . . . Utility 4 | . 1 . . . . . 1 . . . 1 . . 1 Weapon 4 | . 3 . 1 . . . . . . . . . . . Highest Loss Streak 6 | . 6 1 2 . . 1 1 . . . 3 . . 1 To Critical Strikes 1 | . . . . . . . . . . . . . . 1 Average Slot Usage (%) 78 | . 84 37 66 92 92 94 93 89 89 90 88 65 80 82 Engine 6 | . 9 8 7 7 6 11 6 5 5 4 4 4 4 . Reactor 1 | . . . . . . . 3 5 5 4 4 4 4 7 Treads 4 | . 21 . . . . . . . . . . . . . Leg 2 | . . . 7 . . . . . . . . . . . Wheel 2 | . 3 4 7 . . . . . . . . . . . Flight 18 | . . . 8 46 40 41 42 42 42 38 37 26 30 28 Device 6 | . 11 8 . . 6 5 5 5 5 9 9 8 8 12 Storage 6 | . 14 8 6 7 6 5 5 5 5 4 3 . . . Processor 8 | . . . 10 15 13 11 10 10 10 14 14 13 14 14 Hackware 4 | . . . 1 7 6 5 9 10 10 9 8 4 9 7 Protection 1 | . . . . . 5 5 4 . . . . . 4 7 Energy Gun 6 | . 11 . 12 . . . . . . . . . . . Energy Cannon 2 | . 9 . . . . . . . . . . . . . Impact Weapon 1 | . 2 8 . . . . . . . . . . . . Slashing Weapon 2 | . . . 1 7 6 5 5 5 5 4 4 4 4 3 Peak Build Rating 162 | 7 7 5 38 48 57 64 82 78 78 86 101 85 128 162 Average Rating 47 | 4 5 3 19 46 54 62 76 78 78 85 86 73 113 152 On Entrance 54 | . 7 3 . 38 48 57 64 78 78 78 86 71 85 124 Naked Turns 46 | . . 40 6 . . . . . . . . . . . Heaviest Build 64 | 14 16 13 54 25 32 37 44 41 41 42 43 33 48 64 Greatest Support 68 | 40 40 16 20 32 33 39 45 45 45 45 45 48 48 68 Greatest Overweight (x) 5 | . 1 4 5 . . . . . . . . . . . Average Overweight (x) . | . . . . . . . . . . . . . . . Largest Inventory Capacity 20 | 8 8 8 20 10 10 10 10 10 10 10 10 5 5 5 Average Capacity 9 | 6 8 7 13 10 10 10 10 10 10 10 9 5 5 5 Most Carried 12 | 2 6 4 12 10 10 10 10 10 10 9 10 5 5 5 Average Carried 6 | 1 4 3 7 9 9 8 9 10 10 8 9 5 4 4 Final Capacity 10 | 8 8 5 10 10 10 10 10 10 10 10 5 5 5 5 Final Carried 10 | 2 5 4 9 10 10 10 10 10 10 9 5 5 5 3 Class Distribution -------------------- 53% | Mutant 16% | Scavenger-Sprinter 13% | Hacker-Scout 5% | Scavenger-Scout 4% | Scout 3% | Sprinter Dominant Class ---------------- Mutant | -10/Materials Mutant | -9/Materials Mutant | -8/Materials Scavenger-Sprinter | -7/Factory Scavenger-Sprinter | -6/Factory Scavenger-Sprinter | -5/Factory Scavenger-Sprinter | -4/Factory Scavenger-Sprinter | -4/Upper Caves Scavenger-Sprinter | -4/Upper Caves Scavenger-Scout | -3/Research Scavenger-Scout | -3/Testing Scout | -2/Research Hacker-Scout | -2/Quarantine Hacker-Scout | -1/Access Resources | -11 -10 -9 -8 -7 -6 -5 -4 -4 -4 -3 -3 -2 -2 -1 ----------- Run | Yrd Mat Mat Mat Fac Fac Fac Fac Upp Upp Res Tes Res Qua Acc Matter Collected 1306 | 232 201 . 383 20 50 35 92 23 . . 53 19 73 125 Remotely . | . . . . . . . . . . . . . . . Salvage Created 2690 | 15 408 34 1191 75 165 54 92 . . . 53 19 36 548 Parts 152 | 3 19 . 66 10 10 8 9 . . . . 2 7 18 Haulers Intercepted 7 | . 1 . 1 . 1 . . . . . . . . 4 Recyclers Shooed 2 | . . . 2 . . . . . . . . . . . Parts Field Recycled . | . . . . . . . . . . . . . . . Retrieved Matter . | . . . . . . . . . . . . . . . Parts Self-Destructed . | . . . . . . . . . . . . . . . Prevented . | . . . . . . . . . . . . . . . Kills | -11 -10 -9 -8 -7 -6 -5 -4 -4 -4 -3 -3 -2 -2 -1 ------- Run | Yrd Mat Mat Mat Fac Fac Fac Fac Upp Upp Res Tes Res Qua Acc Combat Hostiles Destroyed 40 | . 9 1 24 . . . . . . . . . . 6 Melee 6 | . 2 . 4 . . . . . . . . . . . Guns 17 | . 4 . 13 . . . . . . . . . . . Cannons 2 | . 2 . . . . . . . . . . . . . AOE 14 | . 1 . 7 . . . . . . . . . . 6 Classes Destroyed 15 | 1 5 . 5 . . . . . . . 1 . . 3 Worker 7 | . . . 3 . 1 . . . . . . 1 . 2 Builder 6 | . . . 1 . . . 2 . . . . . 1 2 Tunneler 2 | 1 . . 1 . . . . . . . . . . . Hauler 7 | . 1 . 1 . 1 . . . . . . . . 4 Recycler 3 | . . . 1 . . . . . . . . . . 2 Mechanic 1 | . . . 1 . . . . . . . . . . . Operator 8 | . 1 . 1 2 . 1 . . . . . . 1 2 Watcher 9 | . 1 . 2 1 1 1 1 . . . . . . 2 Swarmer 14 | . 3 . 8 . . . . . . . . . . 3 Grunt 19 | . 6 1 12 . . . . . . . . . . . Researcher 1 | . . . . . . . . . . . 1 . . . Sentry 4 | . . . 4 . . . . . . . . . . . Hunter 1 | . . . . . . . . . . . . . . 1 Programmer 1 | . . . . . . . . . . . . . . 1 Behemoth 1 | . . . . . . . . . . . . . . 1 Best Kill Streak 11 | 1 7 1 7 2 3 1 1 . . . 1 1 2 11 Combat Bots Only 6 | . 5 1 4 . . . . . . . . . . 6 Max Kills in Single Turn 11 | 1 1 1 3 1 1 1 1 . . . 1 1 1 11 Gunslinging . | . . . . . . . . . . . . . . . Exploded 6 | . 1 . 3 . . . . . . . . . . 6 Melee 1 | . 1 . 1 . . . . . . . . . . . Uniques/NPCs Destroyed . | . . . . . . . . . . . . . . . Combat | -11 -10 -9 -8 -7 -6 -5 -4 -4 -4 -3 -3 -2 -2 -1 -------- Run | Yrd Mat Mat Mat Fac Fac Fac Fac Upp Upp Res Tes Res Qua Acc Hostile Shots Fired 443 | . 97 37 102 . . 5 10 11 . . 30 . 21 130 Missed 184 | . 21 11 34 . . 4 7 4 . . 17 . 9 77 Damage Taken 3951 | . 996 331 870 . . 95 55 95 . . 184 . 261 1064 Core 643 | . 207 198 167 . . . . . . . . . 25 46 Absorbed by Shields 280 | . . . . . . . . . . . . . . 280 Redirected to Shielding 123 | . . . . . . . . . . . . . 17 106 Regen/Repaired (Parts) 642 | . . . . . . . . . . . . . 71 571 Core Remaining (%) 84 | 100 17 50 69 100 100 100 . . 100 . 100 . 98 97 Volleys Fired 136 | 5 50 . 80 . . . . . . . . . . 1 Largest 2 | 2 2 . 2 . . . . . . . . . . 1 Hottest 119 | 90 110 . 119 . . . . . . . . . . . Shots Fired 225 | 10 71 . 143 . . . . . . . . . . 1 Gun 188 | 10 44 . 134 . . . . . . . . . . . Cannon 27 | . 27 . . . . . . . . . . . . . Launcher 10 | . . . 9 . . . . . . . . . . 1 Special . | . . . . . . . . . . . . . . . Kinetic 11 | . . . 11 . . . . . . . . . . . Thermal 205 | 10 71 . 123 . . . . . . . . . . 1 Explosive 9 | . . . 9 . . . . . . . . . . . Electromagnetic . | . . . . . . . . . . . . . . . Robot Hit Streak 17 | 5 10 . 17 . . . . . . . . . . . Robot Miss Streak 5 | 1 3 . 5 . . . . . . . . . . . Penetration Max . | . . . . . . . . . . . . . . . Secondary Targets 1 | . . . 1 . . . . . . . . . . . Max Gunslinging Chain 1 | . . . 1 . . . . . . . . . . . Shots Hit Robots 205 | 8 52 6 104 3 3 2 5 . . . 1 2 2 17 Core Hits 100 | 2 17 . 57 1 3 1 2 . . . . 1 . 16 Critical Kills 1 | . . . 1 . . . . . . . . . . . Critical Parts Destroyed 1 | . 1 . . . . . . . . . . . . . Critical Strikes 9 | . 1 . 6 . . . . . . . . . . 2 Burn 4 | . . . 4 . . . . . . . . . . . Destroy 1 | . . . 1 . . . . . . . . . . . Smash 1 | . 1 . . . . . . . . . . . . . Sever 3 | . . . 1 . . . . . . . . . . 2 Melee Attacks 99 | . 7 6 10 10 4 5 10 . . . 12 2 7 26 Impact 13 | . 7 6 . . . . . . . . . . . . Slashing 86 | . . . 10 10 4 5 10 . . . 12 2 7 26 Piercing . | . . . . . . . . . . . . . . . Sneak Attacks 14 | . . . 1 . 2 . 3 . . . 1 1 1 5 Combat Hostiles 1 | . . . 1 . . . . . . . . . . . Follow-up Attacks . | . . . . . . . . . . . . . . . Damage Inflicted 17474 | 94 846 133 2536 231 327 161 458 . . . 185 203 378 11922 Guns 1866 | 94 320 . 1452 . . . . . . . . . . . Cannons 400 | . 400 . . . . . . . . . . . . . Explosions 10382 | . . . 561 . . . . . . . . . . 9821 Melee 4822 | . 122 133 523 231 327 161 458 . . . 185 203 378 2101 Ramming 4 | . 4 . . . . . . . . . . . . . Kinetic 111 | . . . 111 . . . . . . . . . . . Thermal 11976 | 94 720 . 1341 . . . . . . . . . . 9821 Explosive 561 | . . . 561 . . . . . . . . . . . Electromagnetic . | . . . . . . . . . . . . . . . Impact 255 | . 122 133 . . . . . . . . . . . . Slashing 4567 | . . . 523 231 327 161 458 . . . 185 203 378 2101 Piercing . | . . . . . . . . . . . . . . . Highest Corruption 4 | . . . . . . . . . . . . . . 4 Average Corruption 1 | . . . . . . . . . . . . . . 1 Corruption Purged . | . . . . . . . . . . . . . . . Corruption Blocked . | . . . . . . . . . . . . . . . Effects 1 | . . . . . . . . . . . . . . 1 Data Loss (minor) 1 | . . . . . . . . . . . . . . 1 Overload Shots . | . . . . . . . . . . . . . . . Overflow Damage 2223 | . 37 11 103 86 . 48 157 . . . 115 18 303 1345 Projectiles . | . . . . . . . . . . . . . . . Explosions 1129 | . . . . . . . . . . . . . . 1129 Melee 1094 | . 37 11 103 86 . 48 157 . . . 115 18 303 216 Knockbacks 3 | . 3 . . . . . . . . . . . . . Impact 3 | . 3 . . . . . . . . . . . . . Kinetic . | . . . . . . . . . . . . . . . Secondary . | . . . . . . . . . . . . . . . Self-Inflicted Damage 2 | . 2 . . . . . . . . . . . . . Shots . | . . . . . . . . . . . . . . . Rammed 2 | . 2 . . . . . . . . . . . . . Targets Rammed 2 | . 2 . . . . . . . . . . . . . Kicked . | . . . . . . . . . . . . . . . Crushed . | . . . . . . . . . . . . . . . Highest Temperature 373 | 120 373 4 309 184 . 11 82 129 3 . 16 . . . Average Temperature 82 | 53 128 4 92 57 . 3 32 52 3 . 16 . . . Received Heat Transfer 1095 | . 462 180 378 . . 9 . 9 . . 12 . 18 27 Effects 7 | . 4 . 3 . . . . . . . . . . . Shutdowns 1 | . 1 . . . . . . . . . . . . . Energy Bleed 1 | . 1 . . . . . . . . . . . . . Interference 5 | . 2 . 3 . . . . . . . . . . . Siege Activations . | . . . . . . . . . . . . . . . Robots Corrupted 1 | . . 1 . . . . . . . . . . . . Combat Hostiles 1 | . . 1 . . . . . . . . . . . . Parts Fried 3 | . 1 2 . . . . . . . . . . . . Impact Corruptions 2 | . 1 1 . . . . . . . . . . . . Robots Melted . | . . . . . . . . . . . . . . . Combat Hostiles . | . . . . . . . . . . . . . . . Parts Melted 7 | . 3 . 4 . . . . . . . . . . . Heat Transferred 5420 | 260 1682 . 3478 . . . . . . . . . . . Parts Sabotaged . | . . . . . . . . . . . . . . . Parts Stolen . | . . . . . . . . . . . . . . . Parts Stripped . | . . . . . . . . . . . . . . . Power Chain Reactions . | . . . . . . . . . . . . . . . Alert | -11 -10 -9 -8 -7 -6 -5 -4 -4 -4 -3 -3 -2 -2 -1 ------- Run | Yrd Mat Mat Mat Fac Fac Fac Fac Upp Upp Res Tes Res Qua Acc Peak Influence 1475 | 5 234 162 723 348 181 230 278 . . 142 397 239 306 1475 Initial 328 | . 3 42 68 328 142 88 112 . . 127 79 219 134 192 Average 229 | 1 119 76 290 275 155 151 185 . . 132 190 229 228 564 Maximum Alert Level 4 | . 1 . 3 1 . 1 1 . . . 1 1 1 4 Low Security (%) 47 | 100 67 100 29 . 100 60 60 . . 100 65 . 31 . Level 1 39 | . 32 . 45 100 . 39 39 . . . 34 100 68 34 Level 2 8 | . . . 19 . . . . . . . . . . 29 Level 3 4 | . . . 4 . . . . . . . . . . 34 Level 4 . | . . . . . . . . . . . . . . . Level 5 . | . . . . . . . . . . . . . . . High Security . | . . . . . . . . . . . . . . . Max Security . | . . . . . . . . . . . . . . . Squads Dispatched 24 | . 1 2 5 . . 1 1 . . 2 3 . 3 6 Investigation 6 | . . . . . . . 1 . . 1 . . 1 3 Extermination . | . . . . . . . . . . . . . . . Reinforcement 15 | . 1 2 2 . . 1 . . . 1 3 . 2 3 Assault . | . . . . . . . . . . . . . . . Garrison 3 | . . . 3 . . . . . . . . . . . Intercept . | . . . . . . . . . . . . . . . Searches Triggered 1 | . . . . . . . . . . . . . . 1 Construction Impeded 1 | . . . 1 . . . . . . . . . . . Haulers Reinforced 2 | . . . . . . . . . . . . . . 2 Active Scanning Responses . | . . . . . . . . . . . . . . . Cargo Convoy Interrupts . | . . . . . . . . . . . . . . . Stealth | -11 -10 -9 -8 -7 -6 -5 -4 -4 -4 -3 -3 -2 -2 -1 --------- Run | Yrd Mat Mat Mat Fac Fac Fac Fac Upp Upp Res Tes Res Qua Acc Distress Signals 10 | . . . 4 . . . 1 . . 1 2 . . 2 Communications Jammed . | . . . . . . . . . . . . . . . Distress Signals . | . . . . . . . . . . . . . . . Times Spotted 183 | . 16 9 38 3 1 9 12 5 . 1 21 1 16 51 Peak Tracking Total 15 | . 5 5 6 1 1 6 10 4 . 3 11 1 12 15 Tactical Retreats 24 | . 1 2 4 . . 1 1 2 . . 2 . 1 10 Traps | -11 -10 -9 -8 -7 -6 -5 -4 -4 -4 -3 -3 -2 -2 -1 ------- Run | Yrd Mat Mat Mat Fac Fac Fac Fac Upp Upp Res Tes Res Qua Acc Traps Triggered 9 | . 6 . . 1 . 1 1 . . . . . . . Indirectly . | . . . . . . . . . . . . . . . Trap Hack Attempts . | . . . . . . . . . . . . . . . Triggered . | . . . . . . . . . . . . . . . Disarmed . | . . . . . . . . . . . . . . . Reprogrammed . | . . . . . . . . . . . . . . . Reused . | . . . . . . . . . . . . . . . Traps Extracted . | . . . . . . . . . . . . . . . Installed . | . . . . . . . . . . . . . . . Triggered . | . . . . . . . . . . . . . . . Machines | -11 -10 -9 -8 -7 -6 -5 -4 -4 -4 -3 -3 -2 -2 -1 ---------- Run | Yrd Mat Mat Mat Fac Fac Fac Fac Upp Upp Res Tes Res Qua Acc Machines Disabled 19 | . 2 . 4 . . . . . . . 4 . 3 6 Max in Single Turn 5 | . 1 . 1 . . . . . . . 1 . 1 5 Machines Repaired . | . . . . . . . . . . . . . . . Machines Dismantled . | . . . . . . . . . . . . . . . Machines Sabotaged . | . . . . . . . . . . . . . . . Overloaded Fab Kills . | . . . . . . . . . . . . . . . Hacking | -11 -10 -9 -8 -7 -6 -5 -4 -4 -4 -3 -3 -2 -2 -1 --------- Run | Yrd Mat Mat Mat Fac Fac Fac Fac Upp Upp Res Tes Res Qua Acc Machines Accessed 35 | . 4 . 2 5 1 2 4 . . 2 3 . 6 6 Terminals 33 | . 4 . 2 5 1 2 4 . . 2 3 . 5 5 Fabricators . | . . . . . . . . . . . . . . . Repair Stations 1 | . . . . . . . . . . . . . . 1 Recycling Units . | . . . . . . . . . . . . . . . Scanalyzers . | . . . . . . . . . . . . . . . Garrison Access 1 | . . . . . . . . . . . . . 1 . Total Hacks 84 | . 14 . 8 11 2 3 8 . . 5 7 . 14 12 Successful 39 | . 5 . 5 6 2 2 3 . . 1 3 . 7 5 Failed 45 | . 9 . 3 5 . 1 5 . . 4 4 . 7 7 Catastrophic 9 | . 1 . . 1 . 1 1 . . . . . 2 3 Database Lockouts . | . . . . . . . . . . . . . . . Manual 41 | . 11 . 3 8 2 2 5 . . 2 2 . 3 3 Terminals 81 | . 14 . 8 11 2 3 8 . . 5 7 . 12 11 Fabricators . | . . . . . . . . . . . . . . . Repair Stations 1 | . . . . . . . . . . . . . . 1 Recycling Units . | . . . . . . . . . . . . . . . Scanalyzers . | . . . . . . . . . . . . . . . Garrison Access 2 | . . . . . . . . . . . . . 2 . Terminal Hacks 22 | . 3 . 4 4 1 1 1 . . . 1 . 5 2 Part Schematic 2 | . 2 . . . . . . . . . . . . . Prototype ID Bank 7 | . 1 . 2 1 . . . . . . . . 3 . Open Door 1 | . . . . . . . . . . . . . 1 . Level Access Points 6 | . . . 1 1 1 . 1 . . . 1 . . 1 Branch Access Points 1 | . . . . . . 1 . . . . . . . . Terminal Index 1 | . . . 1 . . . . . . . . . . . Unreport Threat 1 | . . . . 1 . . . . . . . . . . Hauler Manifests 1 | . . . . 1 . . . . . . . . . . Zone Layout 2 | . . . . . . . . . . . . . 1 1 Fabricator Hacks . | . . . . . . . . . . . . . . . Repair Station Hacks . | . . . . . . . . . . . . . . . Recycling Unit Hacks . | . . . . . . . . . . . . . . . Scanalyzer . | . . . . . . . . . . . . . . . Garrison Access Hacks . | . . . . . . . . . . . . . . . Unauthorized Hacks 17 | . 2 . 1 2 1 1 2 . . 1 2 . 2 3 Terminals 16 | . 2 . 1 2 1 1 2 . . 1 2 . 2 2 Track 1 | . . . . . . . . . . . . . . 1 Botnet 15 | . 2 . 1 2 1 1 2 . . 1 2 . 2 1 Fabricators . | . . . . . . . . . . . . . . . Repair Stations 1 | . . . . . . . . . . . . . . 1 Patch 1 | . . . . . . . . . . . . . . 1 Recycling Units . | . . . . . . . . . . . . . . . Scanalyzers . | . . . . . . . . . . . . . . . Garrison Access . | . . . . . . . . . . . . . . . Data Cores Recovered 5 | . . . 1 2 . . . . . . . . 1 1 Used 3 | . . . 1 1 . . . . . . . . 1 . Hacking Detections 32 | . 4 . 2 4 1 2 3 . . 2 3 . 6 5 Full Trace Events 5 | . . . . . . . 1 . . 1 . . 1 2 Feedback Events 1 | . . . . . . . . . . . . . . 1 Corruption 1 | . . . . . . . . . . . . . . 1 Feedback Blocked . | . . . . . . . . . . . . . . . Robot Schematics Acquired 1 | . . . . . . . . . . . 1 . . . Robots Built . | . . . . . . . . . . . . . . . Authchips . | . . . . . . . . . . . . . . . Time . | . . . . . . . . . . . . . . . Total Robot Build Rating . | . . . . . . . . . . . . . . . Part Schematics Acquired 3 | . 2 . . . . . . . . . 1 . . . Parts Built . | . . . . . . . . . . . . . . . Authchips . | . . . . . . . . . . . . . . . Time . | . . . . . . . . . . . . . . . Total Part Build Rating . | . . . . . . . . . . . . . . . Parts Repaired . | . . . . . . . . . . . . . . . Time . | . . . . . . . . . . . . . . . Parts Recycled . | . . . . . . . . . . . . . . . Recycled Matter . | . . . . . . . . . . . . . . . Retrieved Matter . | . . . . . . . . . . . . . . . Retrieved Components . | . . . . . . . . . . . . . . . Parts Scanalyzed . | . . . . . . . . . . . . . . . Part Schematics Acquired . | . . . . . . . . . . . . . . . Parts Damaged . | . . . . . . . . . . . . . . . Bothacking | -11 -10 -9 -8 -7 -6 -5 -4 -4 -4 -3 -3 -2 -2 -1 ------------ Run | Yrd Mat Mat Mat Fac Fac Fac Fac Upp Upp Res Tes Res Qua Acc Used RIF Installer . | . . . . . . . . . . . . . . . Robots Hacked . | . . . . . . . . . . . . . . . Non-combat . | . . . . . . . . . . . . . . . Combat . | . . . . . . . . . . . . . . . Robot Hacks Applied . | . . . . . . . . . . . . . . . Relay Couplers Released . | . . . . . . . . . . . . . . . Fabnet Peak Effective % . | . . . . . . . . . . . . . . . Robots Rewired . | . . . . . . . . . . . . . . . Allies Hacked . | . . . . . . . . . . . . . . . Hacks Repelled . | . . . . . . . . . . . . . . . Allies | -11 -10 -9 -8 -7 -6 -5 -4 -4 -4 -3 -3 -2 -2 -1 -------- Run | Yrd Mat Mat Mat Fac Fac Fac Fac Upp Upp Res Tes Res Qua Acc Total Allies 3 | . . . . 3 . . . . . . . . . . Largest Group 3 | . . . . 3 . . . . . . . . . . Highest-Rated Group 93 | . . . . 93 . . . . . . . . . . Highest-Rated Ally 31 | . . . . 31 . . . . . . . . . . Total Orders . | . . . . . . . . . . . . . . . Ally Attacks . | . . . . . . . . . . . . . . . Total Damage . | . . . . . . . . . . . . . . . Kills . | . . . . . . . . . . . . . . . Allies Corrupted . | . . . . . . . . . . . . . . . Allies Melted . | . . . . . . . . . . . . . . . Intel | -11 -10 -9 -8 -7 -6 -5 -4 -4 -4 -3 -3 -2 -2 -1 ------- Run | Yrd Mat Mat Mat Fac Fac Fac Fac Upp Upp Res Tes Res Qua Acc Robot Analysis Total . | . . . . . . . . . . . . . . . Derelict Logs Recovered . | . . . . . . . . . . . . . . . Drone Launches . | . . . . . . . . . . . . . . . Drone Recoveries . | . . . . . . . . . . . . . . . Exploration | -11 -10 -9 -8 -7 -6 -5 -4 -4 -4 -3 -3 -2 -2 -1 ------------- Run | Yrd Mat Mat Mat Fac Fac Fac Fac Upp Upp Res Tes Res Qua Acc Turns Passed 2869 | 135 621 160 703 189 67 91 126 76 8 25 176 19 179 294 Spaces Moved 5168 | 70 264 154 413 533 199 366 435 442 25 128 601 59 613 866 Core 132 | 5 7 90 30 . . . . . . . . . . . Treads 274 | 65 209 . . . . . . . . . . . . . Legs 57 | . . . 57 . . . . . . . . . . . Wheels 228 | . 48 64 116 . . . . . . . . . . . Hover . | . . . . . . . . . . . . . . . Flight 4477 | . . . 210 533 199 366 435 442 25 128 601 59 613 866 Fastest Speed 17 | 50 100 50 26 21 21 19 17 17 17 17 17 19 19 17 Average Speed 34 | 152 147 87 81 21 21 19 17 17 17 17 17 21 19 20 Slowest Speed 250 | 160 160 250 190 21 22 19 17 17 17 17 22 22 19 21 Overloaded Moves . | . . . . . . . . . . . . . . . Propulsion Burnouts . | . . . . . . . . . . . . . . . Robots Hopped 26 | . . . 2 . . 1 2 . . 3 8 . . 10 Cave-ins Triggered . | . . . . . . . . . . . . . . . Exploration Rate (%) 30 | 5 62 28 40 29 10 15 20 68 4 6 77 2 65 33 Regions Visited 14 Branch Regions 4 Pre-discovered Areas . | . . . . . . . . . . . . . . . Known Exits Taken 8 | . . . 1 1 1 . . . 1 1 1 1 1 . Unknown Exits Taken 6 | 1 1 1 . . . 1 1 1 . . . . . . Scrap Searched 3 | . . . . . . . . 2 1 . . . . . Spaces Dug 25 | . . . . 7 1 2 3 . . . 6 . 1 5 Terrain Destroyed 274 | . . . 22 7 1 2 3 . . . 6 . 1 232 Melee 25 | . . . . 7 1 2 3 . . . 6 . 1 5 Projectile . | . . . . . . . . . . . . . . . AOE 249 | . . . 22 . . . . . . . . . . 227 Terrain Rammed . | . . . . . . . . . . . . . . . Walls Destroyed . | . . . . . . . . . . . . . . . Machines Disabled . | . . . . . . . . . . . . . . . Actions | -11 -10 -9 -8 -7 -6 -5 -4 -4 -4 -3 -3 -2 -2 -1 --------- Run | Yrd Mat Mat Mat Fac Fac Fac Fac Upp Upp Res Tes Res Qua Acc Total 5799 | 85 409 167 611 590 214 375 464 442 27 127 647 61 663 917 Wait 230 | 2 69 5 54 37 . . . 1 3 . 19 . 22 18 Move 5105 | 69 263 153 409 532 198 363 430 441 24 121 586 58 612 846 Hop 22 | . . . 1 . . 1 2 . . 3 6 . . 9 Pick Up 50 | 2 6 1 18 5 3 3 3 . . 1 3 . 4 1 Fast Attach 57 | 7 7 . 14 1 3 . 3 . . . 9 1 7 5 Attach 35 | . 3 2 10 2 2 3 5 . . 2 . . 2 4 Detach 5 | . . . 2 . . . 2 . . . . . . 1 Swap 7 | . . . 2 . . . 4 . . . . . . 1 Drop 51 | . 2 . 11 3 4 . 5 . . . 12 . 9 5 Fire 136 | 5 50 . 80 . . . . . . . . . . 1 Melee 99 | . 7 6 10 10 4 5 10 . . . 12 2 7 26 Ram 2 | . 2 . . . . . . . . . . . . . Kick . | . . . . . . . . . . . . . . . Crush . | . . . . . . . . . . . . . . . Escape Stasis . | . . . . . . . . . . . . . . . Rewire . | . . . . . . . . . . . . . . . Trap . | . . . . . . . . . . . . . . . Miscellaneous . | . . . . . . . . . . . . . . . Route ------- -11/Scrapyard -10/Materials (discovered 2 exits: [*Mat] / [*Min]) -9/Materials -8/Materials (discovered 4 exits: *Fac x3 / [*Sto]) -7/Factory (discovered 5 exits: *Fac x4 / [*Low]) -6/Factory (discovered 4 exits: *Fac x4) -5/Factory (discovered 3 exits: *Fac / Upp x2) -4/Factory (discovered 5 exits: Res x4 / [*Upp]) -4/Upper Caves -4/Upper Caves -3/Research -3/Testing -2/Research -2/Quarantine -1/Access To Epsilon Eridani History --------- Turn | Location | Event 3 | -11/Scrapyard | Discovered new exit (range 16) 136 | -11/Scrapyard | Entered Materials 304 | -10/Materials | Discovered new exit (range 16) 306 | -10/Materials | Build established: Mutant 614 | -10/Materials | Core integrity fell below 50% 671 | -10/Materials | Lost 6 parts (3n1u2w) 736 | -10/Materials | Core integrity fell below 20% 747 | -10/Materials | Discovered new exit (range 10) 757 | -10/Materials | Entered another Materials area 757 | -9/Materials | Evolved 2 slots: Propulsion x1, Utility x1 877 | -9/Materials | Released all parts (3) 905 | -9/Materials | Discovered new exit (range 16) 917 | -9/Materials | Entered another Materials area 917 | -8/Materials | Evolved 2 slots: Propulsion x1, Utility x1 1087 | -8/Materials | Discovered new exit (range 18) 1283 | -8/Materials | Garrison activated, responded to threat 1495 | -8/Materials | Identified exit to Factory 1620 | -8/Materials | Entered Factory 1620 | -7/Factory | Evolved 2 slots: Propulsion x2 1669 | -7/Factory | Identified exit to Factory 1673 | -7/Factory | Allied Derelicts emerged from ambush trap array 1725 | -7/Factory | Discovered new exit (range 16) 1809 | -7/Factory | Entered another Factory area 1809 | -6/Factory | Evolved 2 slots: Utility x2 1823 | -6/Factory | Identified exit to Factory 1876 | -6/Factory | Entered another Factory area 1876 | -5/Factory | Evolved 2 slots: Power x1, Propulsion x1 1926 | -5/Factory | Discovered new exit (range 19) 1965 | -5/Factory | Identified exit to Upper Caves 1967 | -5/Factory | Entered another Factory area 1967 | -4/Factory | Evolved 2 slots: Propulsion x1, Utility x1 2057 | -4/Factory | Identified exit to Research 2090 | -4/Factory | Discovered new exit (range 19) 2093 | -4/Factory | Entered Upper Caves 2111 | -4/Upper Caves | Build established: Scavenger-Sprinter 2163 | -4/Upper Caves | Spotted B-86 Titan 2169 | -4/Upper Caves | Discovered new exit (range 2) 2169 | -4/Upper Caves | Entered another Upper Caves area 2170 | -4/Upper Caves | Discovered exit to Research (range 8) 2177 | -4/Upper Caves | Entered Research 2177 | -3/Research | Evolved 2 slots: Propulsion x1, Utility x1 2200 | -3/Research | Discovered new exit (range 13) 2202 | -3/Research | Identified exit to Testing 2202 | -3/Research | Entered Testing 2226 | -3/Testing | Identified exit to Research 2253 | -3/Testing | Found Prototype Device 2253 | -3/Testing | Identified Exp. Hardlight Generator 2316 | -3/Testing | Spotted PP-3DUE6UR9ZZ 2378 | -3/Testing | Entered Research 2378 | -2/Research | Evolved 2 slots: Propulsion x1, Utility x1 2381 | -2/Research | Discovered new exit (range 20) 2393 | -2/Research | Identified exit to Quarantine 2397 | -2/Research | Lost 3 parts (2n1u) 2397 | -2/Research | Entered Quarantine 2398 | -2/Quarantine | Spotted Alpha 7 2425 | -2/Quarantine | Found Alien Launcher 2440 | -2/Quarantine | Found Alien Slashing Weapon 2440 | -2/Quarantine | Identified Sigix Broadsword 2499 | -2/Quarantine | Found Alien Artifact 2565 | -2/Quarantine | Discovered new exit (range 15) 2576 | -2/Quarantine | Identified exit to Access 2576 | -2/Quarantine | Entered Access 2576 | -1/Access | Evolved 2 slots: Utility x2 2818 | -1/Access | Identified exit to Surface 2826 | -1/Access | Search patrols dispatched 2861 | -1/Access | Identified Terrabomb 2861 | -1/Access | Used Terrabomb 2861 | -1/Access | Spotted B-99 Colossus 2867 | -1/Access | Identified Sigix Terminator 2868 | -1/Access | Fired Sigix Terminator 2868 | -1/Access | Destroyed B-99 Colossus 2870 | *** | Escaped! Last Messages --------------- 02862_ Slug penetrates Sealed Heavy Doors. 02862_ K-01 Serf collects debris. 02863_ Main Access Shell breached. 02867_ Identified Sigix Terminator. 02868_ Sigix Terminator expended. 02868_ Destroyed Com. Wheel. 02868_ Destroyed Med. Storage Unit. 02868_ R-10 Processor destroyed. 02868_ Destroyed Imp. Antigrav System. 02868_ Destroyed Adv. Remote Datajack. 02868_ Destroyed Gamma Rifle. 02868_ Destroyed Adv. Heat Sink. 02868_ Destroyed Mic. Antimatter Reactor. 02868_ Destroyed Imp. Antigrav System. 02868_ P-80 Master destroyed. 02868_ S-43 Plague destroyed. 02868_ Destroyed Xenon Bombardment Thruster. 02868_ S-43 Plague destroyed. 02868_ Destroyed Hvy. Machine Gun. 02868_ S-43 Plague destroyed. Map ----- +----------------------------------------------------+ | ?????????????????????????????????????????????????? | | ?????????????????????????????????????????????????? | | ?????????????????????????????????????????????????? | | ?????????????????????????????????????????????????? | | ???????????????"###??????????????????????????????? | | ???????????????"#######??????????????????????????? | | ????????????? # #####??????????????????????????? | | ????????? " ??????????????????????????? | | ?????? " ?????????????????????????? | | #########"+"""""" ############### ???????? | | #####""" """"#""""""""#################???????? | | T" u ##???????? | | " A ? | | #+#""""" """"""""" ""####### ? | | "" "k " ""####### ??????????? | | ?? "" " " ""##????????????????? | | ?? "" " " T##????????????????? | | ? "" """""""" " ""##????????????????? | | ? "" " " " ""##?? ## ??????????? | | ? "" " ! """ ""##?? ## ??????????? | | ? "" " """"""""""""""" # ??????????? | | "" " """ "" # ??????????? | | """"" " " " # ??????????? | | " " "" """ " # ??????????? | | " " " " "??????? # ??????????? | | """""" " " " @" "??????? # ??????????? | | = " " " "" "????????????????????? | | * !] " " " "????????????????????? | | """"""" !] = " " """"""????????????????????? | | " " ]] " " ???????????????????????? | | " " " """""""??????????????????????? | | " " """""""" ""???????????????????????????? | | """"""""" " ""???????????????????????????? | | "" " ""???????????????????????????? | | #" " " ???????????????????????????? | | #" """""""" " ??????BB???????????????????? | | ## " " ?????BB???????????????????? | | ## " " ??????????????????????????? | | ## " " ?????????????????????????? | | ## " " ?????????????????????????? | | ## " " ????????????????????????? | | ## # """""""""""""" ????????????????????????? | | ## ##?? " " ???????????????????????? | | ## ##????" " ????????????????????????? | | ## ##??????? "" ???????????????????????????? | | ## ##????????? ?? ?????????????????????????????? | | ## ##???????????????????????????????????????????? | | ## ##???????????????????????????????????????????? | | ## ##???????????????????????????????????????????? | | # ##???????????????????????????????????????????? | +----------------------------------------------------+ Best States ------------- Heat Dissipation 83 Energy Generation 47 Energy Capacity 580 Matter Stores 300 Matter Capacity 300 Sight Range 20 Robot Scan Range 15 Terrain Scan Density 10 Armor Coverage 225 Propulsion Shielding 66 Evasion (%) 66 Melee Accuracy 16 Recoil Reduction 2 Offensive Hacking 30 Defensive Hacking 12 Item Schematics ----------------- Cargo Storage Unit | -10/Materials | Hacked Huge Storage Unit | -10/Materials | Hacked Exp. Optical Array | -3/Testing | Archive Robot Schematics ------------------ G-67 Veteran | -3/Testing | Archive Fabricated ------------ Nothing Alien Tech Used ----------------- Sigix Broadsword Terrabomb Sigix Terminator Achievements -------------- None Challenges ------------ None Game ------ Seed PulseAutogunBuckler Manual? 0 Play Time 00:52:37 Cumulative 390.2 hours Start 2025.03.17 @ 20:06:25 End 2025.03.17 @ 20:58:51 Sessions 1 Manual Loads 0 Difficulty Rogue Special Mode None Game No. 89 Rogue 89 Adventurer 0 Explorer 0 Win Type 0 Total 27 Types 15/1/6/1/0/0/2/1/1 Lore% 85 Gallery% 84 Achievement% 80 Wizard Run 0 Options --------- Layout 1 ASCII 0 Keyboard 0 Movement Mouse Keybinds 0 Fullscreen 1 Font 24/Smallcaps Map View 50x35 Zoom Use 0% Tactical HUD 1 Map Filters NONE Filters NONE Steam 1 RUN: 7f158b6c-7e49-47f1-97f7-e8e886c809a1